fUSD/lending_fUSD_20241222
["ID","MTS","AMOUNT","RATE_DAILY","PERIOD"]
[346274380,1734857449779,-500.0,0.00019452,2]
[346274381,1734857449788,-500.0,0.00019452,2]
[346274382,1734857449797,-500.0,0.00019452,2]
[346274383,1734857449806,-500.0,0.00019452,2]
[346274384,1734857449814,-275.23425214,0.00019452,2]
[346274385,1734857449822,-500.0,0.00019452,2]
[346274386,1734857449830,-3984.51,0.00019452,2]
[346274387,1734857449840,-799.01,0.00019452,2]
[346274388,1734857449850,-500.0,0.00019452,2]
[346274389,1734857449860,-416.06746466,0.00019452,2]
[346274390,1734857449871,-500.0,0.00019452,2]
[346274391,1734857449881,-500.0,0.00019452,2]
[346274392,1734857449891,-500.0,0.00019452,2]
[346274393,1734857449901,-500.0,0.00019452,2]
[346274394,1734857449910,-505.68318955,0.00019452,2]
[346274395,1734857449919,-500.0,0.00019452,2]
[346274396,1734857449930,-500.0,0.00019452,2]
[346274397,1734857449939,-500.0,0.00019452,2]
[346274398,1734857449949,-900.65,0.00019452,2]
[346274399,1734857449959,-500.0,0.00019452,2]
[346274400,1734857449970,-500.0,0.00019452,2]
[346274401,1734857449980,-504.50492921,0.00019452,2]
[346274402,1734857449989,-500.0,0.00019452,2]
[346274403,1734857449998,-500.0,0.00019452,2]
[346274404,1734857450007,-500.0,0.00019452,2]
[346274405,1734857450017,-506.56998189,0.00019452,2]
[346274406,1734857450026,-500.0,0.00019452,2]
[346274407,1734857450036,-1907.05,0.00019452,2]
[346274408,1734857450045,-500.0,0.00019452,2]
[346274409,1734857450054,-889.19,0.00019452,2]
[346274410,1734857450063,-500.0,0.00019452,2]
[346274411,1734857450072,-492.0,0.00019452,2]
[346274412,1734857450081,-200.0,0.00019452,2]
[346274413,1734857450091,-500.0,0.00019452,2]
[346274414,1734857450102,-500.0,0.00019452,2]
[346274415,1734857450111,-500.0,0.00019452,2]
[346274416,1734857450120,-500.0,0.00019452,2]
[346274417,1734857450131,-1614.37,0.00019452,2]
[346274418,1734857450140,-500.0,0.00019452,2]
[346274419,1734857450149,-500.0,0.00019452,2]
[346274420,1734857450158,-501.45492029,0.00019452,2]
[346274421,1734857450167,-613.03,0.00019452,2]
[346274422,1734857450177,-500.0,0.00019452,2]
[346274423,1734857450186,-500.0,0.00019452,2]
[346274424,1734857450195,-725.97,0.00019452,2]
[346274425,1734857450204,-500.0,0.00019452,2]
[346274426,1734857450213,-578.4539636,0.00019452,2]
[346274427,1734857450225,-1462.4,0.00019452,2]
[346274428,1734857450234,-1635.13,0.00019452,2]
[346274429,1734857450244,-500.0,0.00019452,2]
[346274430,1734857450253,-367.12985799,0.00019452,2]
[346274431,1734857450263,-500.0,0.00019452,2]
[346274432,1734857450273,-815.6,0.00019452,2]
[346274433,1734857450282,-500.0,0.00019452,2]
[346274434,1734857450291,-500.0,0.00019452,2]
[346274435,1734857450301,-500.0,0.00019452,2]
[346274436,1734857450310,-11492.46,0.00019452,2]
[346274437,1734857450323,-2300.47,0.00019452,2]
[346274438,1734857450332,-500.0,0.00019452,2]
[346274439,1734857450341,-500.0,0.00019452,2]
[346274440,1734857450350,-500.0,0.00019452,2]
[346274441,1734857450360,-500.0,0.00019452,2]
[346274442,1734857450368,-500.0,0.00019452,2]
[346274443,1734857450378,-500.0,0.00019452,2]
[346274444,1734857450389,-500.0,0.00019452,2]
[346274445,1734857450400,-507.52577324,0.00019452,2]
[346274446,1734857450411,-500.0,0.00019452,2]
[346274447,1734857450422,-665.35,0.00019452,2]
[346274448,1734857450431,-500.0,0.00019452,2]
[346274449,1734857450440,-1390.4,0.00019452,2]
[346274450,1734857450450,-500.0,0.00019452,2]
[346274451,1734857450458,-500.0,0.00019452,2]
[346274452,1734857450467,-500.0,0.00019452,2]
[346274453,1734857450476,-443.13692722,0.00019452,2]
[346274454,1734857450485,-500.0,0.00019452,2]
[346274455,1734857450494,-1261.96,0.00019452,2]
[346274456,1734857450503,-1821.13,0.00019452,2]
[346274457,1734857450513,-3114.55,0.00019452,2]
[346274458,1734857450522,-503.61712962,0.00019452,2]
[346274459,1734857450532,-500.0,0.00019452,2]
[346274460,1734857450540,-500.0,0.00019452,2]
[346274461,1734857450550,-849.44,0.00019452,2]
[346274462,1734857450559,-500.0,0.00019452,2]
[346274463,1734857450567,-1306.46,0.00019452,2]
[346274464,1734857450576,-556.95,0.00019452,2]
[346274465,1734857450586,-872.84,0.00019452,2]
[346274466,1734857450595,-944.58,0.00019452,2]
[346274467,1734857450604,-512.85734791,0.00019452,2]
[346274468,1734857450614,-500.0,0.00019452,2]
[346274469,1734857450623,-500.0,0.00019452,2]
[346274470,1734857450632,-500.0,0.00019452,2]
[346274471,1734857450641,-628.29,0.00019452,2]
[346274472,1734857450650,-500.0,0.00019452,2]
[346274473,1734857450659,-500.0,0.00019452,2]
[346274474,1734857450668,-500.0,0.00019452,2]
[346274475,1734857450677,-980.06,0.00019452,2]
[346274476,1734857450686,-500.0,0.00019452,2]
[346274477,1734857450695,-546.6,0.00019452,2]
[346274478,1734857450704,-3318.15,0.00019452,2]
[346274479,1734857450713,-622.8,0.00019452,2]
[346274480,1734857450723,-500.0,0.00019452,2]
[346274481,1734857450732,-500.0,0.00019452,2]
[346274482,1734857450741,-500.0,0.00019452,2]
[346274483,1734857450751,-500.0,0.00019452,2]
[346274484,1734857450760,-500.0,0.00019452,2]
[346274485,1734857450770,-500.0,0.00019452,2]
[346274486,1734857450779,-4705.0,0.00019452,2]
[346274487,1734857450788,-1436.52,0.00019452,2]
[346274488,1734857450797,-500.0,0.00019452,2]
[346274489,1734857450807,-500.0,0.00019452,2]
[346274490,1734857450816,-3100.08,0.00019452,2]
[346274491,1734857450825,-500.0,0.00019452,2]
[346274492,1734857450835,-2528.34,0.00019452,2]
[346274493,1734857450844,-150.22205419,0.00019452,2]
[346274494,1734857450853,-1007.09,0.00019452,2]
[346274495,1734857450863,-2951.34,0.00019452,2]
[346274496,1734857450871,-500.0,0.00019452,2]
[346274497,1734857450880,-500.0,0.00019452,2]
[346274498,1734857450889,-500.0,0.00019452,2]
[346274499,1734857450898,-734.37,0.00019452,2]
[346274500,1734857450907,-622.34,0.00019452,2]
[346274501,1734857450917,-1981.03,0.00019452,2]
[346274502,1734857450926,-654.34,0.00019452,2]
[346274503,1734857450935,-568.29915338,0.00019452,2]
[346274504,1734857450944,-7513.27,0.00019452,2]
[346274505,1734857450953,-500.0,0.00019452,2]
[346274506,1734857450962,-1080.05,0.00019452,2]
[346274507,1734857450974,-500.0,0.00019452,2]
[346274508,1734857450983,-500.0,0.00019452,2]
[346274509,1734857450992,-1778.13,0.00019452,2]
[346274510,1734857451001,-500.0,0.00019452,2]
[346274511,1734857451010,-997.48,0.00019452,2]
[346274512,1734857451019,-511.11787748,0.00019452,2]
[346274513,1734857451028,-500.0,0.00019452,2]
[346274514,1734857451038,-894.5,0.00019452,2]
[346274515,1734857451047,-500.0,0.00019452,2]
[346274516,1734857451056,-500.0,0.00019452,2]
[346274517,1734857451065,-500.0,0.00019452,2]
[346274518,1734857451074,-500.0,0.00019452,2]
[346274519,1734857451083,-1654.62,0.00019452,2]
[346274520,1734857451215,-500.0,0.00019452,2]
[346274521,1734857451226,-500.0,0.00019452,2]
[346274522,1734857451236,-3042.28,0.00019452,2]
[346274523,1734857451245,-500.0,0.00019452,2]
[346274524,1734857451254,-500.0,0.00019452,2]
[346274525,1734857451263,-500.0,0.00019452,2]
[346274526,1734857451272,-267.45698375,0.00019452,2]
[346274527,1734857451281,-892.47,0.00019452,2]
[346274528,1734857451291,-500.0,0.00019452,2]
[346274529,1734857451300,-9258.18,0.00019452,2]
[346274530,1734857451309,-500.0,0.00019452,2]
[346274531,1734857451319,-500.0,0.00019452,2]
[346274532,1734857451330,-500.0,0.00019452,2]
[346274533,1734857451339,-9537.34,0.00019452,2]
[346274534,1734857451348,-500.0,0.00019452,2]
[346274535,1734857451357,-842.67,0.00019452,2]
[346274536,1734857451367,-500.0,0.00019452,2]
[346274537,1734857451376,-677.14,0.00019452,2]
[346274538,1734857451385,-500.0,0.00019452,2]
[346274539,1734857451394,-500.0,0.00019452,2]
[346274540,1734857451403,-1278.76,0.00019452,2]
[346274541,1734857451412,-500.0,0.00019452,2]
[346274542,1734857451421,-500.0,0.00019452,2]
[346274543,1734857451430,-875.88,0.00019452,2]
[346274544,1734857451439,-500.0,0.00019452,2]
[346274545,1734857451448,-1431.36,0.00019452,2]
[346274546,1734857451458,-5452.06,0.00019452,2]
[346274547,1734857451466,-500.0,0.00019452,2]
[346274548,1734857451478,-500.0,0.00019452,2]
[346274549,1734857451487,-500.0,0.00019452,2]
[346274550,1734857451497,-410.62,0.00019452,2]
[346274551,1734857451506,-2168.55,0.00019452,2]
[346274552,1734857451515,-2978.28,0.00019452,2]
[346274553,1734857451524,-500.0,0.00019452,2]
[346274554,1734857451533,-3032.65,0.00019452,2]
[346274555,1734857451543,-500.0,0.00019452,2]
[346274556,1734857451552,-500.0,0.00019452,2]
[346274557,1734857451562,-1590.15,0.00019452,2]
[346274558,1734857451571,-500.0,0.00019452,2]
[346274559,1734857451580,-500.0,0.00019452,2]
[346274560,1734857451589,-2913.51,0.00019452,2]
[346274561,1734857451598,-500.0,0.00019452,2]
[346274562,1734857451607,-3604.17,0.00019452,2]
[346274563,1734857451617,-930.27,0.00019452,2]
[346274564,1734857451626,-4743.24,0.00019452,2]
[346274565,1734857451635,-4154.64,0.00019452,2]
[346274566,1734857451644,-500.0,0.00019452,2]
[346274567,1734857451654,-500.0,0.00019452,2]
[346274568,1734857451663,-926.05,0.00019452,2]
[346274569,1734857451672,-500.0,0.00019452,2]
[346274570,1734857451681,-629.09,0.00019452,2]
[346274571,1734857451690,-7051.11,0.00019452,2]
[346274572,1734857451699,-517.64036478,0.00019452,2]
[346274573,1734857451708,-468.411612,0.00019452,2]
[346274574,1734857451719,-500.0,0.00019452,2]
[346274575,1734857451728,-2470.81,0.00019452,2]
[346274576,1734857451737,-516.51,0.00019452,2]
[346274577,1734857451747,-520.34,0.00019452,2]
[346274579,1734857451756,-1152.39,0.00019452,2]
[346274580,1734857451765,-1459.71,0.00019452,2]
[346274581,1734857451774,-615.42,0.00019452,2]
[346274582,1734857451783,-500.0,0.00019452,2]
[346274583,1734857451791,-500.0,0.00019452,2]
[346274584,1734857451800,-500.0,0.00019452,2]
[346274585,1734857451809,-500.0,0.00019452,2]
[346274586,1734857451818,-27381.35,0.00019452,2]
[346274587,1734857451827,-792.58,0.00019452,2]
[346274588,1734857451835,-500.0,0.00019452,2]
[346274589,1734857451844,-898.94,0.00019452,2]
[346274590,1734857451854,-1301.05,0.00019452,2]
[346274591,1734857451863,-1469.91,0.00019452,2]
[346274592,1734857451872,-500.0,0.00019452,2]
[346274593,1734857451881,-500.0,0.00019452,2]
[346274594,1734857451890,-500.0,0.00019452,2]
[346274595,1734857451899,-757.06,0.00019452,2]
[346274596,1734857451908,-12923.58146854,0.00019452,2]
[346274597,1734857451917,-12923.58146854,0.00019457,2]
[346274598,1734857451927,-14062.98375413,0.0001946,2]
[346274599,1734857451936,-5194.41337268,0.00019461,2]
[346274600,1734857451946,-14062.98375413,0.00019462,2]
[346274601,1734857451955,-12923.58146854,0.00019467,2]
[346274602,1734857451964,-5194.41337268,0.00019467,2]
[346274603,1734857451975,-14062.98375413,0.00019468,2]
[346274604,1734857451984,-14062.98375413,0.00019474,2]
[346274605,1734857451993,-12923.58146854,0.00019475,2]
[346274606,1734857452002,-5194.41337268,0.00019481,2]
[346274607,1734857452011,-5194.41337268,0.00019482,2]
[346274608,1734857452020,-5194.41337268,0.00019482,2]
[346274609,1734857452029,-12923.58146854,0.00019488,2]
[346274610,1734857452038,-5194.41337268,0.00019488,2]
[346274611,1734857452047,-200.0,0.000195,7]
[346274612,1734857452056,-14001.29782387,0.00019567,2]
[346274613,1734857452065,-1119.28130883,0.000196,2]
[346274614,1734857452074,-1076.58580789,0.000196,2]
[346274615,1734857452083,-200.0,0.000196,7]
[346274616,1734857452093,-2010.0,0.00019616,2]
[346274617,1734857452102,-1265.0,0.00019616,2]
[346274618,1734857452111,-212.033,0.00019616,2]
[346274619,1734857452120,-203.253,0.00019616,2]
[346274620,1734857452129,-633.624,0.00019616,2]
[346274621,1734857452138,-590.453,0.00019616,2]
[346274622,1734857452146,-1898.0,0.00019616,2]
[346274623,1734857452155,-927.0,0.00019616,2]
[346274624,1734857452164,-3770.0,0.00019616,2]
[346274625,1734857452173,-1256.0,0.00019616,2]
[346274626,1734857452182,-818.0,0.00019616,2]
[346274627,1734857452191,-3682.0,0.00019616,2]
[346274628,1734857452200,-536.0,0.00019616,2]
[346274629,1734857452209,-250.0,0.00019616,2]
[346274630,1734857452218,-158.372,0.00019616,2]
[346274631,1734857452227,-228.0,0.00019616,2]
[346274632,1734857452236,-3886.0,0.00019616,2]
[346274633,1734857452246,-167.0,0.00019616,2]
[346274634,1734857452255,-150.0,0.00019616,2]
[346274635,1734857452265,-1170.0,0.00019616,2]
[346274636,1734857452274,-13756.0,0.00019616,2]
[346274637,1734857452284,-328.59317014,0.00019667,2]
[346274638,1734857452293,-14001.29782387,0.00019678,2]
[346274639,1734857452302,-821.39,0.00019699,2]
[346274640,1734857452311,-500.0,0.00019699,2]
[346274641,1734857452322,-1402.99,0.00019699,2]
[346274642,1734857452331,-4129.44,0.00019699,2]
[346274643,1734857452340,-6253.74681108,0.000197,2]
[346274644,1734857452349,-1142.7403,0.000197,2]
[346274645,1734857452359,-500.0,0.000197,2]
[346274646,1734857452368,-1000.0,0.000197,2]
[346274647,1734857452378,-200.0,0.000197,7]
[346274648,1734857452389,-328.59317008,0.00019706,2]
[346274649,1734857452401,-500.0,0.00019725,2]
[346274650,1734857452412,-500.0,0.00019725,2]
[346274651,1734857452423,-500.0,0.00019725,2]
[346274652,1734857452434,-500.0,0.00019725,2]
[346274653,1734857452444,-500.0,0.00019725,2]
[346274654,1734857452456,-500.0,0.00019725,2]
[346274655,1734857452465,-500.0,0.00019725,2]
[346274656,1734857452474,-325.88,0.00019725,2]
[346274657,1734857452484,-359.14802239,0.00019726,2]
[346274658,1734857452494,-945.97,0.00019726,2]
[346274659,1734857452505,-500.0,0.00019726,2]
[346274660,1734857452514,-500.0,0.00019726,2]
[346274661,1734857452524,-500.0,0.00019726,2]
[346274662,1734857452535,-500.0,0.00019726,2]
[346274663,1734857452545,-500.0,0.00019726,2]
[346274664,1734857452556,-500.0,0.00019726,2]
[346274665,1734857452565,-500.0,0.00019726,2]
[346274666,1734857452575,-500.0,0.00019726,2]
[346274667,1734857452584,-500.0,0.00019726,2]
[346274668,1734857452593,-500.0,0.00019726,2]
[346274669,1734857452603,-439.833172,0.00019726,2]
[346274670,1734857452612,-612.331633,0.00019726,2]
[346274671,1734857452621,-500.0,0.00019726,2]
[346274672,1734857452631,-576.17,0.00019726,2]
[346274673,1734857452641,-500.0,0.00019726,2]
[346274674,1734857452651,-299.48369921,0.00019726,2]
[346274675,1734857452660,-354.56258692,0.00019726,2]
[346274676,1734857452669,-500.0,0.00019726,2]
[346274677,1734857452678,-500.0,0.00019726,2]
[346274678,1734857452688,-500.0,0.00019726,2]
[346274679,1734857452697,-500.0,0.00019726,2]
[346274680,1734857452707,-500.0,0.00019726,2]
[346274681,1734857452716,-1492.33,0.00019726,2]
[346274682,1734857452726,-500.0,0.00019726,2]
[346274683,1734857452736,-500.0,0.00019726,2]
[346274684,1734857452746,-646.46,0.00019726,2]
[346274685,1734857452755,-500.0,0.00019726,2]
[346274686,1734857452764,-534.36,0.00019726,2]
[346274687,1734857452774,-500.0,0.00019726,2]
[346274688,1734857452782,-177.36479156,0.00019726,2]
[346274689,1734857452791,-500.0,0.00019726,2]
[346274690,1734857452800,-500.0,0.00019726,2]
[346274691,1734857452809,-500.0,0.00019726,2]
[346274692,1734857452819,-500.0,0.00019726,2]
[346274693,1734857452828,-772.05,0.00019726,2]
[346274694,1734857452838,-500.0,0.00019726,2]
[346274695,1734857452847,-748.97,0.00019726,2]
[346274696,1734857452856,-297.64,0.00019726,2]
[346274697,1734857452866,-323.09046055,0.00019726,2]
[346274698,1734857452875,-500.0,0.00019726,2]
[346274699,1734857452884,-500.0,0.00019726,2]
[346274700,1734857452894,-500.0,0.00019726,2]
[346274701,1734857452903,-500.0,0.00019726,2]
[346274702,1734857452912,-500.0,0.00019726,2]
[346274703,1734857452922,-500.0,0.00019726,2]
[346274704,1734857452932,-500.0,0.00019726,2]
[346274705,1734857452940,-500.0,0.00019726,2]
[346274706,1734857452950,-500.0,0.00019726,2]
[346274707,1734857452959,-500.0,0.00019726,2]
[346274708,1734857452969,-500.0,0.00019726,2]
[346274709,1734857452979,-500.0,0.00019726,2]
[346274710,1734857452988,-637.73,0.00019726,2]
[346274711,1734857452998,-245.35,0.00019726,2]
[346274712,1734857453007,-500.0,0.00019726,2]
[346274713,1734857453016,-500.0,0.00019726,2]
[346274714,1734857453025,-500.0,0.00019726,2]
[346274715,1734857453035,-500.0,0.00019726,2]
[346274716,1734857453044,-500.0,0.00019726,2]
[346274717,1734857453054,-500.0,0.00019726,2]
[346274718,1734857453063,-500.0,0.00019726,2]
[346274719,1734857453072,-500.0,0.00019726,2]
[346274720,1734857453082,-399.41,0.00019726,2]
[346274721,1734857453091,-500.0,0.00019726,2]
[346274722,1734857453100,-213.88,0.00019726,2]
[346274723,1734857453110,-500.0,0.00019726,2]
[346274724,1734857453119,-500.0,0.00019726,2]
[346274725,1734857453128,-500.0,0.00019726,2]
[346274726,1734857453137,-590.75,0.00019726,2]
[346274727,1734857453146,-500.0,0.00019726,2]
[346274728,1734857453156,-934.02,0.00019726,2]
[346274729,1734857453165,-500.0,0.00019726,2]
[346274730,1734857453174,-500.0,0.00019726,2]
[346274731,1734857453183,-1203.18,0.00019726,2]
[346274732,1734857453193,-500.0,0.00019726,2]
[346274733,1734857453202,-500.0,0.00019726,2]
[346274734,1734857453211,-500.0,0.00019726,2]
[346274735,1734857453222,-500.0,0.00019726,2]
[346274736,1734857453231,-500.0,0.00019726,2]
[346274737,1734857453240,-500.0,0.00019726,2]
[346274738,1734857453250,-500.0,0.00019726,2]
[346274739,1734857453259,-500.0,0.00019726,2]
[346274740,1734857453268,-507.24,0.00019726,2]
[346274741,1734857453278,-500.0,0.00019726,2]
[346274742,1734857453288,-500.0,0.00019726,2]
[346274743,1734857453297,-500.0,0.00019726,2]
[346274744,1734857453306,-563.85,0.00019726,2]
[346274745,1734857453315,-565.43,0.00019726,2]
[346274746,1734857453328,-500.0,0.00019726,2]
[346274747,1734857453337,-500.0,0.00019726,2]
[346274748,1734857453347,-500.0,0.00019726,2]
[346274749,1734857453356,-500.0,0.00019726,2]
[346274750,1734857453366,-500.0,0.00019726,2]
[346274751,1734857453375,-500.0,0.00019726,2]
[346274752,1734857453384,-500.0,0.00019726,2]
[346274753,1734857453393,-500.0,0.00019726,2]
[346274754,1734857453403,-403.34337921,0.00019726,2]
[346274755,1734857453412,-500.0,0.00019726,2]
[346274756,1734857453421,-500.0,0.00019726,2]
[346274757,1734857453430,-937.21,0.00019726,2]
[346274758,1734857453439,-500.0,0.00019726,2]
[346274759,1734857453449,-500.0,0.00019726,2]
[346274760,1734857453459,-500.0,0.00019726,2]
[346274761,1734857453591,-286.59277933,0.00019726,2]
[346274762,1734857453602,-656.43,0.00019726,2]
[346274763,1734857453611,-500.0,0.00019726,2]
[346274764,1734857453621,-500.0,0.00019726,2]
[346274765,1734857453631,-500.0,0.00019726,2]
[346274766,1734857453641,-1347.77,0.00019726,2]
[346274767,1734857453651,-500.0,0.00019726,2]
[346274768,1734857453660,-500.0,0.00019726,2]
[346274769,1734857453670,-677.07,0.00019726,2]
[346274770,1734857453679,-500.0,0.00019726,2]
[346274771,1734857453688,-500.0,0.00019726,2]
[346274772,1734857453698,-500.0,0.00019726,2]
[346274773,1734857453707,-500.0,0.00019726,2]
[346274774,1734857453716,-500.0,0.00019726,2]
[346274775,1734857453729,-500.0,0.00019726,2]
[346274776,1734857453738,-500.0,0.00019726,2]
[346274777,1734857453747,-500.0,0.00019726,2]
[346274778,1734857453756,-500.0,0.00019726,2]
[346274779,1734857453765,-500.0,0.00019726,2]
[346274780,1734857453774,-500.0,0.00019726,2]
[346274781,1734857453784,-500.0,0.00019726,2]
[346274782,1734857453794,-500.0,0.00019726,2]
[346274783,1734857453803,-500.0,0.00019726,2]
[346274784,1734857453814,-500.0,0.00019726,2]
[346274785,1734857453824,-500.0,0.00019726,2]
[346274786,1734857453835,-500.0,0.00019726,2]
[346274787,1734857453844,-543.18,0.00019726,2]
[346274788,1734857453853,-500.0,0.00019726,2]
[346274789,1734857453864,-500.0,0.00019726,2]
[346274790,1734857453873,-500.0,0.00019726,2]
[346274791,1734857453882,-500.0,0.00019726,2]
[346274792,1734857453891,-500.0,0.00019726,2]
[346274793,1734857453900,-500.0,0.00019726,2]
[346274794,1734857453909,-721.15,0.00019726,2]
[346274795,1734857453918,-500.0,0.00019726,2]
[346274796,1734857453929,-500.0,0.00019726,2]
[346274797,1734857453939,-500.0,0.00019726,2]
[346274798,1734857453948,-500.0,0.00019726,2]
[346274799,1734857453958,-500.0,0.00019726,2]
[346274800,1734857453967,-500.0,0.00019726,2]
[346274801,1734857453980,-500.0,0.00019726,2]
[346274802,1734857453990,-500.0,0.00019726,2]
[346274803,1734857453998,-500.0,0.00019726,2]
[346274804,1734857454006,-500.0,0.00019726,2]
[346274805,1734857454014,-500.0,0.00019726,2]
[346274806,1734857454023,-500.0,0.00019726,2]
[346274807,1734857454032,-500.0,0.00019726,2]
[346274808,1734857454041,-500.0,0.00019726,2]
[346274809,1734857454050,-511.63496964,0.00019726,2]
[346274810,1734857454059,-500.0,0.00019726,2]
[346274811,1734857454068,-500.0,0.00019726,2]
[346274812,1734857454077,-403.45686689,0.00019726,2]
[346274813,1734857454087,-500.0,0.00019726,2]
[346274814,1734857454096,-500.0,0.00019726,2]
[346274815,1734857454105,-500.0,0.00019726,2]
[346274816,1734857454114,-634.21,0.00019726,2]
[346274817,1734857454124,-651.7,0.00019726,2]
[346274818,1734857454133,-1222.26,0.00019726,2]
[346274819,1734857454142,-500.0,0.00019726,2]
[346274820,1734857454152,-3736.49,0.00019726,2]
[346274821,1734857454162,-1271.88,0.00019726,2]
[346274822,1734857454172,-500.0,0.00019726,2]
[346274823,1734857454181,-790.01,0.00019726,2]
[346274824,1734857454190,-500.0,0.00019726,2]
[346274825,1734857454200,-500.0,0.00019726,2]
[346274826,1734857454209,-159.44,0.00019726,2]
[346274827,1734857454220,-500.0,0.00019726,2]
[346274828,1734857454229,-728.79,0.00019726,2]
[346274829,1734857454239,-500.0,0.00019726,2]
[346274830,1734857454248,-500.0,0.00019726,2]
[346274831,1734857454257,-500.0,0.00019726,2]
[346274832,1734857454266,-500.0,0.00019726,2]
[346274833,1734857454275,-1167.08,0.00019726,2]
[346274834,1734857454284,-1214.41,0.00019726,2]
[346274835,1734857454294,-968.45,0.00019726,2]
[346274836,1734857454303,-500.0,0.00019726,2]
[346274837,1734857454311,-369.03708655,0.00019726,2]
[346274838,1734857454323,-567.82,0.00019726,2]
[346274839,1734857454333,-993.2,0.00019726,2]
[346274840,1734857454342,-830.47,0.00019726,2]
[346274841,1734857454351,-370.81989,0.00019726,2]
[346274842,1734857454360,-500.0,0.00019726,2]
[346274843,1734857454371,-3984.51,0.00019726,2]
[346274844,1734857454381,-799.01,0.00019726,2]
[346274845,1734857454391,-500.0,0.00019726,2]
[346274846,1734857454401,-500.0,0.00019726,2]
[346274847,1734857454411,-500.0,0.00019726,2]
[346274848,1734857454421,-500.0,0.00019726,2]
[346274849,1734857454430,-900.65,0.00019726,2]
[346274850,1734857454439,-500.0,0.00019726,2]
[346274851,1734857454449,-500.0,0.00019726,2]
[346274852,1734857454458,-500.0,0.00019726,2]
[346274853,1734857454467,-500.0,0.00019726,2]
[346274854,1734857454480,-500.0,0.00019726,2]
[346274855,1734857454489,-500.0,0.00019726,2]
[346274856,1734857454499,-1907.05,0.00019726,2]
[346274857,1734857454508,-500.0,0.00019726,2]
[346274858,1734857454517,-889.19,0.00019726,2]
[346274859,1734857454526,-500.0,0.00019726,2]
[346274860,1734857454536,-500.0,0.00019726,2]
[346274861,1734857454547,-500.0,0.00019726,2]
[346274862,1734857454556,-500.0,0.00019726,2]
[346274863,1734857454565,-500.0,0.00019726,2]
[346274864,1734857454575,-1614.37,0.00019726,2]
[346274865,1734857454585,-500.0,0.00019726,2]
[346274866,1734857454595,-500.0,0.00019726,2]
[346274867,1734857454604,-613.03,0.00019726,2]
[346274868,1734857454615,-521.84011,0.00019726,2]
[346274869,1734857454625,-500.0,0.00019726,2]
[346274870,1734857454633,-725.97,0.00019726,2]
[346274871,1734857454642,-1462.4,0.00019726,2]
[346274872,1734857454651,-1635.13,0.00019726,2]
[346274873,1734857454660,-815.6,0.00019726,2]
[346274874,1734857454668,-500.0,0.00019726,2]
[346274875,1734857454678,-500.0,0.00019726,2]
[346274876,1734857454687,-11492.46,0.00019726,2]
[346274877,1734857454696,-2300.47,0.00019726,2]
[346274878,1734857454705,-500.0,0.00019726,2]
[346274879,1734857454715,-500.0,0.00019726,2]
[346274880,1734857454725,-500.0,0.00019726,2]